bitfinex/quotes_SOLUSD_20251030
["timestamp","ask_amount","ask_price","bid_price","bid_amount"]
[1761824291005,20.592,192.55,192.49,0.7]
[1761824291006,3.24260355,192.53,192.49,0.7]
[1761824291325,3.24260355,192.5,192.47,5.8956149]
[1761824291498,3.24260355,192.49,192.47,0.7]
[1761824291701,3.24260355,192.48,192.45,0.7]
[1761824291909,3.24260355,192.47,192.44,6.09624849]
[1761824292089,20.592,192.5,192.45,0.7]
[1761824292287,3.24260355,192.47,192.45,0.7]
[1761824293305,3.24260355,192.47,192.45,5.8960482]
[1761824295111,3.24260355,192.47,192.45,67.4960482]
[1761824295415,3.24260355,192.47,192.45,61.6]
[1761824295791,3.24260355,192.46,192.45,61.6]
[1761824296906,3.24260355,192.46,192.45,62.28]
[1761824298292,3.24260355,192.46,192.45,61.6]
[1761824298698,3.24260355,192.46,192.45,62.28]
[1761824300693,0.69,192.55,192.46,9.78882769]
[1761824300899,3.24260355,192.52,192.48,9.78882769]
[1761824301298,5.88270591,192.58,192.49,0.68]
[1761824301610,3.24260355,192.55,192.5,13.03143124]
[1761824301806,3.24260355,192.55,192.51,0.68]
[1761824302118,5.88270591,192.58,192.51,0.68]
[1761824302119,3.24260355,192.53,192.51,0.68]
[1761824302325,3.24260355,192.53,192.51,5.87444982]
[1761824302825,3.24260355,192.53,192.51,0.68]
[1761824303023,3.24260355,192.52,192.48,0.71]
[1761824303232,3.24260355,192.53,192.49,0.71]
[1761824303425,3.24260355,192.54,192.49,0.71]
[1761824304840,3.24260355,192.54,192.5,5.19480519]
[1761824305336,3.24260355,192.54,192.51,0.71]
[1761824305820,0.71,192.54,192.49,0.71]
[1761824306031,3.24260355,192.52,192.49,0.71]
[1761824306721,3.24260355,192.51,192.49,0.71]
[1761824306913,3.24260355,192.51,192.49,62.31]
[1761824308626,3.24260355,192.5,192.49,61.6]
[1761824309301,2.07617137,192.5,192.49,61.6]
[1761824309508,0.71,192.53,192.49,61.6]
[1761824309716,2.07617137,192.53,192.5,0.71]
[1761824309926,2.07617137,192.53,192.5,62.31]
[1761824310318,2.07617137,192.52,192.5,62.31]
[1761824310905,2.07617137,192.51,192.5,61.6]
[1761824311514,20.592,192.49,192.44,0.2]
[1761824311714,2.07617137,192.45,192.44,0.2]
[1761824314728,7.27232621,192.45,192.44,0.2]
[1761824314931,7.98232621,192.45,192.44,0.2]
[1761824316421,2.78617137,192.45,192.44,0.2]
[1761824316632,2.07617137,192.45,192.44,0.91]
[1761824317813,2.07617137,192.45,192.44,0.2]
[1761824320618,7.27232621,192.45,192.44,0.2]
[1761824320943,7.98232621,192.45,192.44,0.2]
[1761824321643,8.12448778,192.45,192.44,0.2]
[1761824325748,2.07617137,192.45,192.44,0.2]
[1761824325931,2.78617137,192.45,192.44,0.2]
[1761824326845,28.57432621,192.45,192.44,0.2]
[1761824332150,28.71648778,192.45,192.44,0.2]
[1761824335457,8.12448778,192.45,192.44,0.2]
[1761824337551,28.71648778,192.45,192.44,0.2]
[1761824337749,8.12448778,192.45,192.44,0.2]
[1761824338129,28.71648778,192.45,192.44,0.2]
[1761824338346,8.12448778,192.45,192.44,0.2]
[1761824342351,6.04831641,192.45,192.44,0.2]
[1761824342650,8.12448778,192.45,192.44,0.2]
[1761824344131,28.71648778,192.45,192.44,0.2]
[1761824344351,8.12448778,192.45,192.44,0.2]
[1761824346356,5.90615484,192.45,192.44,0.2]
[1761824346543,7.98232621,192.45,192.44,0.2]
[1761824347958,20.592,192.45,192.44,0.89]
[1761824348149,22.66817137,192.45,192.44,0.89]
[1761824348864,5.19530898,192.49,192.44,0.89]
[1761824349156,20.592,192.46,192.45,0.69]
[1761824349360,30.31356871,192.58,192.45,2.76617137]
[1761824349656,2.07617137,192.52,192.45,2.76617137]
[1761824349845,2.07617137,192.52,192.46,0.69]
[1761824350037,22.66817137,192.52,192.46,0.69]
[1761824350236,2.07617137,192.51,192.47,5.1956149]
[1761824350437,2.07617137,192.48,192.46,0.69]
[1761824350652,2.07617137,192.47,192.44,0.89]
[1761824350963,2.07617137,192.45,192.44,0.89]
[1761824351138,2.07617137,192.45,192.44,0.2]
[1761824351657,2.88833294,192.45,192.44,0.2]
[1761824352362,8.08448778,192.45,192.44,0.2]
[1761824356739,5.19615484,192.45,192.44,0.2]
[1761824357062,3.49155926,192.48,192.44,10.67882769]
[1761824357247,5.19403562,192.53,192.46,9.78882769]
[1761824357562,22.66817137,192.5,192.47,0.69]
[1761824358251,2.07617137,192.5,192.47,0.69]
[1761824358763,20.592,192.51,192.47,5.88561283]
[1761824359152,20.592,192.49,192.48,0.69]
[1761824359765,7.27049335,192.52,192.48,0.69]
[1761824359949,20.592,192.49,192.48,0.69]
[1761824361156,2.07617137,192.52,192.48,0.69]
[1761824361358,20.592,192.51,192.48,0.69]
[1761824362162,20.592,192.51,192.48,7.96139085]
[1761824362368,2.07617137,192.56,192.5,2.07617137]
[1761824362571,2.07617137,192.56,192.51,0.71]
[1761824362772,22.66817137,192.56,192.51,0.71]
[1761824362978,2.07617137,192.55,192.51,0.71]
[1761824363360,2.07617137,192.52,192.5,61.6]
[1761824363559,2.07617137,192.51,192.49,0.71]
[1761824363788,2.07617137,192.5,192.49,0.71]
[1761824367373,2.07617137,192.51,192.49,0.71]
[1761824367767,2.07617137,192.5,192.49,0.71]
[1761824368510,2.07617137,192.5,192.49,62.31]
[1761824369995,5.194377,192.52,192.49,62.31]
[1761824370197,2.07617137,192.5,192.49,61.6]
[1761824370876,2.07617137,192.51,192.49,62.31]
[1761824371075,2.07617137,192.51,192.5,0.71]
[1761824371276,3.24378805,192.51,192.5,0.71]
[1761824372592,20.592,192.51,192.5,0.71]
[1761824373090,3.24378805,192.55,192.5,5.90480519]
[1761824373291,3.24378805,192.54,192.5,0.71]
[1761824373481,3.24378805,192.54,192.51,0.71]
[1761824374383,3.24378805,192.54,192.51,62.31]
[1761824374786,3.24378805,192.54,192.52,0.71]
[1761824378790,3.24378805,192.53,192.52,0.71]
[1761824379712,3.24378805,192.53,192.51,62.31]
[1761824379921,3.24378805,192.52,192.51,61.6]
[1761824380427,3.24378805,192.52,192.51,62.31]
[1761824380589,29.71005358,192.52,192.51,61.6]
[1761824385012,29.03005358,192.52,192.51,61.6]
[1761824386091,29.03005358,192.52,192.49,0.71]
[1761824386293,3.24378805,192.5,192.49,0.71]
[1761824390899,20.592,192.49,192.47,61.6]
[1761824391101,20.592,192.47,192.44,62.51]
[1761824391316,3.24378805,192.46,192.45,0.71]
[1761824398626,3.24378805,192.46,192.44,5.39635329]
[1761824398627,9.09970825,192.46,192.44,61.8]
[1761824398828,3.24378805,192.45,192.44,61.8]
[1761824399524,23.83578805,192.45,192.44,61.8]
[1761824400529,23.83578805,192.45,192.44,62.5]
[1761824400918,20.592,192.48,192.44,62.5]
[1761824401228,3.24378805,192.46,192.45,0.7]
[1761824401432,3.24378805,192.48,192.45,5.89592103]
[1761824401609,3.24378805,192.49,192.45,5.89592103]
[1761824401808,3.24378805,192.48,192.46,0.7]
[1761824402510,3.24378805,192.47,192.44,66.99636425]
[1761824402722,3.24378805,192.47,192.45,0.7]
[1761824403732,3.24378805,192.47,192.45,62.3]
[1761824403936,23.83578805,192.47,192.46,0.7]
[1761824404129,23.83578805,192.47,192.45,61.6]
[1761824404313,3.24378805,192.46,192.45,61.6]
[1761824404713,3.24378805,192.46,192.45,62.3]
[1761824407826,3.24378805,192.49,192.45,67.49615484]
[1761824408132,3.24378805,192.49,192.46,0.7]
[1761824408917,3.24378805,192.49,192.46,5.89571749]
[1761824409129,3.24378805,192.48,192.46,5.89571749]
[1761824409333,3.24378805,192.48,192.47,0.7]
[1761824409932,3.24378805,192.48,192.45,61.6]
[1761824410134,3.24378805,192.46,192.45,61.6]
[1761824410524,24.49578805,192.46,192.44,61.8]
[1761824410732,3.24378805,192.45,192.44,61.8]
[1761824411521,3.24378805,192.45,192.44,62.5]
[1761824411826,3.24378805,192.45,192.44,61.8]
[1761824412836,8.43994289,192.45,192.44,0.2]
[1761824413042,9.09994289,192.45,192.44,0.2]
[1761824413339,9.24210446,192.45,192.44,0.2]
[1761824413549,0.14216157,192.44,192.43,0.2]
[1761824413841,20.592,192.42,192.35,0.2]
[1761824414041,3.24378805,192.36,192.35,0.86]
[1761824415027,3.24378805,192.36,192.35,0.2]
[1761824415832,5.19831773,192.37,192.35,0.2]
[1761824416036,3.24378805,192.36,192.35,0.2]
[1761824419242,20.592,192.33,192.32,0.2]
[1761824419557,42.08333846,192.33,192.32,0.2]
[1761824419729,45.32712651,192.33,192.32,0.2]
[1761824420331,41.84155082,192.33,192.29,0.2]
[1761824420534,6.4875761,192.3,192.29,0.2]
[1761824420732,7.28973767,192.3,192.29,0.2]
[1761824420959,0.14216157,192.29,192.28,0.2]
[1761824421252,0.14216157,192.27,192.25,0.2]
[1761824421442,4.04594962,192.27,192.25,0.2]
[1761824421936,4.04594962,192.26,192.25,0.2]
[1761824422739,9.24723953,192.26,192.25,0.2]
[1761824424246,9.24723953,192.26,192.2,0.2]
[1761824424247,20.73416157,192.24,192.2,0.2]
[1761824424567,23.97794962,192.24,192.2,0.2]
[1761824424746,29.87978066,192.24,192.2,0.2]
[1761824424936,3.38594962,192.23,192.2,0.2]
[1761824425251,20.592,192.21,192.2,0.2]
[1761824425441,27.0795761,192.21,192.2,0.2]
[1761824425641,27.7795761,192.21,192.2,0.2]
[1761824425830,24.53578805,192.21,192.2,0.2]
[1761824426353,27.92173767,192.21,192.2,0.2]
[1761824426543,4.08594962,192.21,192.2,0.2]
[1761824427057,9.28859256,192.21,192.2,0.2]
[1761824427949,12.53238061,192.21,192.2,0.2]
[1761824432272,20.592,192.18,192.16,0.2]
[1761824432565,29.18167548,192.17,192.16,0.2]
[1761824432766,9.78882769,192.16,192.15,0.2]
[1761824432955,20.592,192.13,192.09,0.2]
[1761824433165,6.4875761,192.1,192.09,0.2]
[1761824433370,31.022817,192.1,192.09,0.2]
[1761824433535,24.7643268,192.1,192.09,0.2]
[1761824433736,4.8723268,192.1,192.09,0.2]
[1761824434266,4.8723268,192.1,192.05,0.1]
[1761824434267,20.592,192.07,192.05,0.1]
[1761824434448,2.0861634,192.06,192.05,0.1]
[1761824434652,7.29286963,192.06,192.05,0.1]
[1761824435464,8.1350312,192.06,192.05,0.1]
[1761824436149,17.92385889,192.06,192.05,0.1]
[1761824437649,20.592,192.03,191.98,0.72]
[1761824437948,2.0861634,191.99,191.98,0.72]
[1761824438142,20.592,192.03,191.98,0.72]
[1761824438362,5.9053511,192.11,191.99,2.0861634]
[1761824438545,5.9053511,192.11,191.98,5.92887592]
[1761824438546,2.0861634,192.01,191.98,5.92885514]
[1761824438751,2.0861634,192.01,191.99,0.72]
[1761824440583,2.0861634,192.01,191.99,5.92859562]
[1761824441082,2.0861634,192.01,192.0,0.72]
[1761824442959,2.0861634,192.01,191.99,0.72]
[1761824444361,2.0861634,192.0,191.99,0.72]
[1761824444560,22.6781634,192.0,191.99,0.72]
[1761824445466,2.0861634,192.0,191.99,0.72]
[1761824445660,2.0861634,192.01,191.99,0.72]
[1761824446067,2.0861634,192.0,191.99,0.72]
[1761824447384,2.0861634,192.01,191.99,0.72]
[1761824449381,22.6781634,192.01,191.99,0.72]
[1761824450101,13.01535326,192.09,191.99,5.9285528]
[1761824450406,2.0861634,192.06,192.0,2.0861634]
[1761824450581,2.0861634,192.05,192.01,0.72]
[1761824450783,2.0861634,192.04,192.01,0.72]
[1761824451380,2.0861634,192.04,192.01,5.92780218]
[1761824451996,22.6781634,192.04,192.01,5.92780218]
[1761824452307,22.6781634,192.04,192.02,0.72]
[1761824452503,2.0861634,192.04,192.02,0.72]
[1761824452796,22.6781634,192.05,192.02,0.72]
[1761824453614,20.592,192.05,192.03,5.20751965]
[1761824453806,2.0861634,192.06,192.03,5.20751965]
[1761824453992,22.6781634,192.06,192.04,0.67]
[1761824454388,2.0861634,192.11,192.05,2.0861634]
[1761824454586,2.0861634,192.12,192.06,2.7561634]
[1761824454977,2.0861634,192.12,192.07,0.67]
[1761824455183,2.0861634,192.11,192.07,0.67]
[1761824455907,20.592,192.12,192.07,5.87641576]
[1761824456094,2.0861634,192.11,192.07,5.87641576]
[1761824456593,2.0861634,192.11,192.08,0.67]
[1761824456793,2.0861634,192.1,192.08,0.67]
[1761824457205,2.0861634,192.09,192.05,61.6]
[1761824457502,2.0861634,192.06,192.04,0.67]
[1761824457709,2.0861634,192.07,192.04,5.87718101]
[1761824458086,2.0861634,192.07,192.05,0.67]
[1761824458704,2.0861634,192.06,192.05,0.67]
[1761824459299,20.592,192.08,192.05,0.67]
[1761824459586,2.0861634,192.07,192.05,0.67]
[1761824460610,2.0861634,192.07,192.0,0.67]
[1761824460611,23.3981634,192.06,192.0,0.67]
[1761824460810,2.0861634,192.04,192.0,0.67]
[1761824461202,22.6781634,192.04,192.0,0.67]
[1761824462101,22.6781634,192.04,192.0,5.87814299]
[1761824462415,2.0861634,192.03,192.0,5.87814299]
[1761824462606,2.0861634,192.03,192.01,0.67]
[1761824463115,22.6781634,192.04,192.01,0.67]
[1761824463292,2.0861634,192.08,192.02,2.0861634]
[1761824463486,2.0861634,192.08,192.03,0.67]
[1761824463889,2.0861634,192.08,192.03,2.7561634]
[1761824464086,2.0861634,192.08,192.03,0.67]
[1761824464315,0.14216157,192.13,192.0,18.22897632]
[1761824464316,20.592,192.06,192.04,0.67]
[1761824464504,22.6781634,192.06,192.04,62.27]
[1761824464705,22.6781634,192.07,192.04,62.27]
[1761824465107,20.592,192.06,192.05,0.67]
[1761824465613,22.6781634,192.06,192.04,61.6]
[1761824465813,22.6781634,192.06,192.04,62.27]
[1761824466014,22.6781634,192.06,192.05,0.67]
[1761824467116,5.92496127,192.13,192.05,67.47697734]
[1761824467413,2.0861634,192.1,192.06,0.67]
[1761824467611,4.19101208,192.18,192.08,2.0861634]
[1761824467816,2.0861634,192.15,192.09,2.7561634]
[1761824468017,2.0861634,192.14,192.09,0.67]
[1761824468201,2.0861634,192.14,192.1,0.67]
[1761824468403,2.0861634,192.14,192.11,5.2053511]
[1761824468602,2.0861634,192.14,192.11,5.8753511]
[1761824469013,20.592,192.13,192.11,5.8753511]
[1761824469207,20.592,192.13,192.11,0.67]
[1761824469407,2.8061634,192.12,192.02,5.20778818]
[1761824469612,2.0861634,192.05,192.03,0.67]
[1761824469800,2.0861634,192.06,192.03,0.67]
[1761824470544,2.0861634,192.05,192.03,0.67]
[1761824471442,2.0861634,192.04,192.03,0.67]
[1761824471732,2.0861634,192.05,192.03,0.67]
[1761824472231,2.0861634,192.05,192.03,5.87748558]
[1761824472537,2.0861634,192.05,192.03,0.67]
[1761824473226,2.0861634,192.05,192.01,5.87806208]
[1761824473618,2.0861634,192.04,192.02,0.67]
[1761824474432,5.20655056,192.07,192.02,0.67]
[1761824474619,2.0861634,192.04,192.02,5.87766556]
[1761824475914,5.87655056,192.07,192.02,5.87766556]
[1761824476114,2.0861634,192.06,192.03,0.65]
[1761824476734,2.0861634,192.05,192.03,0.65]
[1761824477318,26.46825054,192.08,192.02,5.20766556]
[1761824477535,2.0861634,192.04,192.02,5.20766556]
[1761824477738,2.0861634,192.04,192.01,0.65]
[1761824477934,2.0861634,192.04,192.01,5.85796237]
[1761824478141,20.592,192.08,192.01,18.87811757]
[1761824478340,3.48779532,192.12,192.06,2.0861634]
[1761824478516,2.0861634,192.13,192.07,2.7361634]
[1761824478715,2.0861634,192.12,192.08,0.65]
[1761824480033,2.0861634,192.12,192.08,5.85612382]
[1761824480442,22.6781634,192.09,191.96,65.95492196]
[1761824480635,2.0861634,192.02,191.97,0.65]
[1761824480946,2.0861634,192.02,191.97,5.85912321]
[1761824481138,2.0861634,192.01,191.97,8.58191531]
[1761824481327,2.0861634,192.01,191.97,3.3727921]
[1761824481523,2.0861634,192.0,191.98,0.65]
[1761824481716,2.0861634,192.01,191.98,0.65]
[1761824481920,2.0861634,192.01,191.98,5.85871821]
[1761824482150,2.0861634,192.01,191.98,0.65]
[1761824482346,20.592,192.03,191.99,0.65]
[1761824482645,22.6781634,192.03,191.99,0.65]
[1761824482830,2.0861634,192.01,191.99,0.65]
[1761824483829,2.0861634,192.01,191.97,8.63167046]
[1761824484139,2.0861634,192.0,191.97,8.63167046]
[1761824484530,2.0861634,191.99,191.97,3.4227921]
[1761824484734,2.0861634,191.99,191.97,0.7]
[1761824485139,0.67,192.03,191.97,5.90914153]
[1761824485323,2.0861634,191.99,191.97,5.90914153]
[1761824486343,2.0861634,192.0,191.97,5.90914153]
[1761824487453,2.0861634,192.0,191.96,5.20936672]
[1761824487660,2.0861634,192.0,191.97,0.7]
[1761824488264,1.9861634,192.0,191.97,0.7]
[1761824489267,1.9861634,192.0,191.97,5.90911451]
[1761824489846,1.9861634,192.0,191.97,5.20911451]
[1761824490563,2.0861634,191.99,191.97,5.20911451]
[1761824490764,2.0861634,191.99,191.96,5.20941862]
[1761824490957,2.0861634,191.99,191.96,5.90941862]
[1761824491159,2.0861634,191.98,191.96,5.90941862]
[1761824492169,5.87812793,192.01,191.96,5.90941862]
[1761824492468,2.0861634,191.99,191.96,5.90941862]
[1761824492674,2.0861634,192.0,191.97,0.7]
[1761824493046,2.0861634,191.99,191.97,0.7]
[1761824493463,3.26123812,191.99,191.96,5.20941862]
[1761824493678,3.26123812,191.99,191.96,5.90941862]
[1761824493849,0.67,192.02,191.96,5.90941862]
[1761824494053,3.26123812,192.0,191.97,0.7]
[1761824495288,3.26123812,192.0,191.97,5.90902444]
[1761824495777,3.26123812,191.99,191.95,7.93249228]
[1761824495960,3.26123812,191.99,191.95,8.63249228]
[1761824496689,3.26123812,191.99,191.96,0.7]
[1761824497490,3.26123812,191.99,191.96,5.90916271]
[1761824498660,3.26123812,191.99,191.96,0.7]
[1761824498856,3.26123812,191.98,191.95,2.72304687]
[1761824499053,5.20852375,192.0,191.94,5.20990243]
[1761824499370,3.26123812,191.98,191.96,0.7]
[1761824499962,5.20852375,192.0,191.96,0.7]
[1761824499963,3.26123812,191.99,191.96,0.7]
[1761824502088,3.26123812,191.99,191.96,5.90937275]
[1761824502589,3.26123812,191.99,191.96,0.7]
[1761824503484,3.26123812,191.99,191.96,5.90936686]
[1761824504190,3.26123812,191.99,191.96,0.7]
[1761824505387,3.26123812,191.99,191.96,5.90939559]
[1761824505577,3.26123812,191.98,191.94,8.63312615]
[1761824505772,3.26123812,191.98,191.95,0.7]
[1761824507876,3.26123812,191.98,191.96,5.20941862]
[1761824508187,3.26123812,191.98,191.95,5.90961193]
[1761824508687,3.26123812,191.99,191.96,0.7]
[1761824509069,3.26123812,191.98,191.95,5.20961193]
[1761824509464,3.26123812,191.97,191.95,5.20961193]
[1761824509666,3.93123812,191.97,191.95,5.20961193]
[1761824509872,3.26123812,191.97,191.95,5.20961193]
[1761824510777,3.26123812,191.97,191.95,5.90961193]
[1761824511696,21.262,192.04,191.96,0.7]
[1761824511870,5.87673544,192.06,191.97,3.26123812]
[1761824512073,3.26123812,192.03,191.98,3.26123812]
[1761824512596,3.26123812,192.04,191.99,3.96123812]
[1761824512802,3.26123812,192.02,191.99,0.7]
[1761824513179,3.26123812,192.03,191.99,0.7]
[1761824513583,3.26123812,192.02,192.0,5.20833333]
[1761824513989,3.26123812,192.02,191.99,0.7]
[1761824514189,3.26123812,192.02,191.99,5.90859402]
[1761824514693,3.26123812,192.05,192.0,0.7]
[1761824514899,23.85323812,192.06,192.0,3.96123812]
[1761824515100,3.26123812,192.05,192.0,3.96123812]
[1761824515300,3.26123812,192.05,192.01,0.7]
[1761824515674,3.26123812,192.05,192.02,5.20779085]
[1761824516085,3.26123812,192.05,192.03,0.7]
[1761824516398,3.26123812,192.1,192.04,3.26123812]
[1761824516600,0.66,192.11,192.04,3.26123812]
[1761824516902,3.26123812,192.11,192.05,3.96123812]
[1761824517093,3.26123812,192.12,192.06,3.26123812]
[1761824517291,3.92123812,192.13,192.07,3.96123812]
[1761824517496,3.26123812,192.12,192.08,0.7]
[1761824517694,3.26123812,192.12,192.08,5.90598412]
[1761824517897,3.26123812,192.09,192.0,0.7]
[1761824518197,3.26123812,192.02,192.0,0.7]
[1761824518400,3.26123812,192.02,191.98,15.69770361]
[1761824519001,20.592,192.07,191.99,0.7]
[1761824519002,3.26123812,192.03,191.99,0.7]
[1761824519405,3.26123812,192.04,191.99,0.7]
[1761824519902,3.26123812,192.04,192.0,5.20833333]
[1761824520281,3.26123812,192.04,192.01,0.7]
[1761824520706,3.26123812,192.05,192.01,0.7]
[1761824521075,23.85323812,192.09,192.03,3.26123812]
[1761824521277,0.66,192.13,192.07,3.26123812]
[1761824521598,3.26123812,192.14,192.08,3.26123812]
[1761824521800,20.592,192.12,192.09,5.20589307]
[1761824522006,3.26123812,192.14,192.09,5.20589307]
[1761824522200,20.592,192.12,192.09,5.20589307]
[1761824522389,5.20402443,192.16,192.09,70.06713119]
[1761824522594,3.26123812,192.15,192.1,0.7]
[1761824522787,3.26123812,192.15,192.09,61.6]
[1761824522788,3.26123812,192.13,192.09,61.6]
[1761824523205,3.26123812,192.13,192.09,62.3]
[1761824523609,0.66,192.12,192.09,61.6]
[1761824523780,3.26123812,192.1,192.07,61.6]
[1761824524208,3.26123812,192.11,192.08,0.7]
[1761824524707,20.592,192.12,192.08,0.7]
[1761824525017,3.26123812,192.11,192.08,0.7]
[1761824525524,21.252,192.12,192.08,0.7]
[1761824525820,3.26123812,192.11,192.08,0.7]
[1761824526643,3.26123812,192.11,192.07,66.80634801]
[1761824526644,3.26123812,192.1,192.07,66.80634801]
[1761824527616,3.26123812,192.1,192.07,61.6]
[1761824528424,3.92123812,192.1,192.07,61.6]
[1761824529719,3.26123812,192.09,192.06,61.6]
[1761824530525,3.26123812,192.08,192.06,61.6]
[1761824530930,0.66,192.09,192.06,61.6]
[1761824531241,3.92123812,192.09,192.06,61.6]
[1761824531420,3.26123812,192.09,192.06,61.6]
[1761824532002,3.26123812,192.07,192.05,61.6]
[1761824532294,3.26123812,192.08,192.05,62.3]
[1761824532931,3.26123812,192.08,192.05,67.50695459]
[1761824533244,23.85323812,192.1,192.06,0.7]
[1761824533733,3.26123812,192.09,192.06,0.7]
[1761824534833,3.26123812,192.09,192.06,5.90657407]
[1761824535722,3.26123812,192.09,192.06,62.3]
[1761824536334,3.26123812,192.09,192.06,67.50668986]
[1761824537438,20.592,192.1,192.06,67.50668986]
[1761824537649,3.26123812,192.09,192.06,67.50668986]
[1761824538651,3.26123812,192.09,192.07,0.69]
[1761824539252,3.26123812,192.09,192.07,5.89643227]
[1761824539546,3.26123812,192.14,192.08,3.26123812]
[1761824539839,3.26123812,192.16,192.1,3.26123812]
[1761824540232,3.26123812,192.16,192.11,0.69]
[1761824540743,3.26123812,192.16,192.11,5.89520297]
[1761824541135,3.26123812,192.16,192.12,0.69]
[1761824541849,23.85323812,192.18,192.13,0.69]
[1761824542432,23.85323812,192.18,192.12,61.6]
[1761824542433,3.92123812,192.17,192.12,61.6]
[1761824542631,3.26123812,192.16,192.12,61.6]
[1761824542827,3.26123812,192.16,192.12,67.46485863]
[1761824543050,23.85323812,192.18,192.13,0.66]
[1761824543645,20.592,192.18,192.13,3.92123812]
[1761824543861,20.592,192.18,192.14,3.26123812]
[1761824544068,3.26123812,192.21,192.15,3.26123812]
[1761824544370,3.26123812,192.21,192.15,65.52123812]
[1761824544534,23.85323812,192.21,192.16,0.66]
[1761824544735,3.26123812,192.19,192.16,0.66]
[1761824544956,21.282,192.21,192.16,0.66]
[1761824544957,3.26123812,192.18,192.16,0.66]
[1761824545272,25.79492435,192.2,192.16,0.66]
[1761824545273,3.26123812,192.19,192.16,0.66]
[1761824545966,3.26123812,192.18,192.15,61.6]
[1761824546130,3.95123812,192.18,192.15,61.6]
[1761824547266,3.95123812,192.18,192.14,5.20449035]
[1761824547455,3.26123812,192.18,192.14,5.86449035]
[1761824547670,3.26123812,192.18,192.15,0.66]
[1761824549279,3.26123812,192.19,192.15,5.86416688]
[1761824549454,3.26123812,192.19,192.16,0.66]
[1761824549769,3.26123812,192.21,192.16,65.52123812]
[1761824549972,0.2,192.22,192.19,3.26123812]
[1761824550181,0.2,192.22,192.21,9.78882769]
[1761824550554,0.2,192.22,192.21,10.44882769]
[1761824550982,0.2,192.22,192.21,0.66]
[1761824551176,0.2,192.22,192.15,44.23617311]
[1761824551482,0.2,192.22,192.19,5.20318434]
[1761824551681,0.2,192.22,192.19,8.46442246]
[1761824551882,0.2,192.22,192.2,0.66]
[1761824553663,0.2,192.22,192.21,5.20264294]
[1761824554162,0.2,192.22,192.21,5.86264294]
[1761824555889,0.2,192.22,192.21,0.66]
[1761824556084,0.2,192.22,192.21,62.26]
[1761824558587,0.2,192.22,192.21,67.46264294]
[1761824558804,0.2,192.22,192.21,79.85341015]
[1761824560677,0.2,192.22,192.21,77.77173492]
[1761824560989,0.2,192.22,192.21,79.85341015]
[1761824561667,0.2,192.22,192.21,77.25147063]
[1761824561863,0.2,192.22,192.21,79.33314586]
[1761824564663,0.2,192.22,192.21,79.85341015]
[1761824565769,0.2,192.22,192.21,79.99557172]
[1761824565962,0.2,192.22,192.21,100.58757172]
[1761824566165,0.2,192.26,192.24,9.78882769]
[1761824566468,0.2,192.26,192.25,2.74167523]
[1761824566662,0.2,192.26,192.25,7.94323569]
[1761824569185,0.2,192.26,192.24,71.18882769]
[1761824569493,0.2,192.26,192.24,77.05055466]
[1761824569692,0.2,192.26,192.25,0.66]
[1761824570194,0.2,192.26,192.25,5.86156046]
[1761824570686,0.2,192.26,192.25,67.26156046]
[1761824571089,0.2,192.26,192.25,69.34323569]
[1761824571790,0.2,192.26,192.25,67.26156046]
[1761824577694,0.2,192.26,192.25,66.60156046]
[1761824577873,0.2,192.26,192.25,67.28156046]
[1761824580484,0.2,192.26,192.25,69.36323569]
[1761824580800,0.2,192.31,192.27,9.78882769]
[1761824581102,0.2,192.31,192.3,11.87050292]
[1761824581329,0.2,192.31,192.3,12.55050292]
[1761824581900,0.2,192.31,192.3,79.15071091]
[1761824582074,2.94167523,192.31,192.3,66.60020799]
[1761824582277,2.94167523,192.31,192.3,61.39999999]
[1761824583188,8.14161283,192.31,192.25,61.39999999]
[1761824583390,2.08167523,192.28,192.25,61.39999999]